{"text_format":"1","workbook":"xlsx","n_sheets":4,"sheets":["Anleitung","Vergleich","Auswertung und Diagramm","Tabelle2"],"not_rendered":{"charts":1,"images":8,"macros":1,"external_links":0,"defined_names":0,"comments":0,"pivot_tables":0},"unopened":[],"bounds":{"document_bytes":16777216,"sheet_cells":100000,"rows_first":2000,"rows_last":500,"rows_between":2000,"halvings":0,"cell_chars":16384,"cell_head_chars":4096},"cells_cut":0,"cells_raw":0,"read":"whole","date_system":"1900"}

{"sheet":"Anleitung","index":0,"n_rows":7,"n_cols":2,"rows_kept":7,"cut":false,"hidden":false,"merged":[[2,1,2,7],[3,1,3,7],[4,1,4,7],[5,1,5,7],[6,1,6,7]]}
[]
[]
[1,"GPS-Tracker zum Vergleich aussuchen und Modellbezeichnungen eintragen."]
[2,"Kriterien anschauen und persönliche Gewichtung vornehmen. Auf Wunsch können Kriterien mit der Option \"nicht in Wertung aufnehmen\" aus dem Vergleich ausgeschlossen werden."]
[3,"Modelle nach den jedem Kriterium beurteilen. Hierbei gilt das System von Schulnoten: 1 = sehr gut, 6 = ungenügend"]
[4,"Ergebnisse auswerten und den besten GPS-Tracker auswählen."]
[5,"Auf Wunsch direkt den PAJ Shop öffnen."]

{"sheet":"Vergleich","index":1,"n_rows":48,"n_cols":16,"rows_kept":48,"cut":false,"hidden":false,"merged":[[29,5,29,6],[41,2,41,13],[1,0,11,0],[15,0,25,0],[29,0,39,0],[29,13,29,14],[29,9,29,10],[1,5,1,7],[1,9,1,11],[1,13,1,15],[15,5,15,7],[15,9,15,11],[15,13,15,15]]}
[]
["Anbietermerkmale",null,null,null,null,"Modell 1",null,null,null,"Modell 2",null,null,null,"Modell 3"]
[null,"Thema-Nr.","Kriterium","persönliche Gewichtung",null,"Note","berechnete Punktzahl","Info",null,"Note","berechnete Punktzahl","Info",null,"Note","berechnete Punktzahl","Info"]
[null,1,"Datenschutz",null,null,null,{"$f":"IF(OR($D4=0,F4=0),\"\",PRODUCT(INDEX(Tabelle2!$F:$F,MATCH(F4,Tabelle2!$E:$E,0)),INDEX(Tabelle2!$B:$B,MATCH($D4,Tabelle2!$A:$A,0))))","v":""},null,null,null,{"$f":"IF(OR($D4=0,J4=0),\"\",PRODUCT(INDEX(Tabelle2!$F:$F,MATCH(J4,Tabelle2!$E:$E,0)),INDEX(Tabelle2!$B:$B,MATCH($D4,Tabelle2!$A:$A,0))))","v":""},null,null,null,{"$f":"IF(OR($D4=0,N4=0),\"\",PRODUCT(INDEX(Tabelle2!$F:$F,MATCH(N4,Tabelle2!$E:$E,0)),INDEX(Tabelle2!$B:$B,MATCH($D4,Tabelle2!$A:$A,0))))","v":""}]
[null,2,"Geschäftsmodell",null,null,null,{"$f":"IF(OR($D5=0,F5=0),\"\",PRODUCT(INDEX(Tabelle2!$F:$F,MATCH(F5,Tabelle2!$E:$E,0)),INDEX(Tabelle2!$B:$B,MATCH($D5,Tabelle2!$A:$A,0))))","v":""},null,null,null,{"$f":"IF(OR($D5=0,J5=0),\"\",PRODUCT(INDEX(Tabelle2!$F:$F,MATCH(J5,Tabelle2!$E:$E,0)),INDEX(Tabelle2!$B:$B,MATCH($D5,Tabelle2!$A:$A,0))))","v":""},null,null,null,{"$f":"IF(OR($D5=0,N5=0),\"\",PRODUCT(INDEX(Tabelle2!$F:$F,MATCH(N5,Tabelle2!$E:$E,0)),INDEX(Tabelle2!$B:$B,MATCH($D5,Tabelle2!$A:$A,0))))","v":""}]
[null,3,"Gütesiegel/Seriosität",null,null,null,{"$f":"IF(OR($D6=0,F6=0),\"\",PRODUCT(INDEX(Tabelle2!$F:$F,MATCH(F6,Tabelle2!$E:$E,0)),INDEX(Tabelle2!$B:$B,MATCH($D6,Tabelle2!$A:$A,0))))","v":""},null,null,null,{"$f":"IF(OR($D6=0,J6=0),\"\",PRODUCT(INDEX(Tabelle2!$F:$F,MATCH(J6,Tabelle2!$E:$E,0)),INDEX(Tabelle2!$B:$B,MATCH($D6,Tabelle2!$A:$A,0))))","v":""},null,null,null,{"$f":"IF(OR($D6=0,N6=0),\"\",PRODUCT(INDEX(Tabelle2!$F:$F,MATCH(N6,Tabelle2!$E:$E,0)),INDEX(Tabelle2!$B:$B,MATCH($D6,Tabelle2!$A:$A,0))))","v":""}]
[null,4,"Kundendienst",null,null,null,{"$f":"IF(OR($D7=0,F7=0),\"\",PRODUCT(INDEX(Tabelle2!$F:$F,MATCH(F7,Tabelle2!$E:$E,0)),INDEX(Tabelle2!$B:$B,MATCH($D7,Tabelle2!$A:$A,0))))","v":""},null,null,null,{"$f":"IF(OR($D7=0,J7=0),\"\",PRODUCT(INDEX(Tabelle2!$F:$F,MATCH(J7,Tabelle2!$E:$E,0)),INDEX(Tabelle2!$B:$B,MATCH($D7,Tabelle2!$A:$A,0))))","v":""},null,null,null,{"$f":"IF(OR($D7=0,N7=0),\"\",PRODUCT(INDEX(Tabelle2!$F:$F,MATCH(N7,Tabelle2!$E:$E,0)),INDEX(Tabelle2!$B:$B,MATCH($D7,Tabelle2!$A:$A,0))))","v":""}]
[null,5,"Rezensionen anderer Kunden",null,null,null,{"$f":"IF(OR($D8=0,F8=0),\"\",PRODUCT(INDEX(Tabelle2!$F:$F,MATCH(F8,Tabelle2!$E:$E,0)),INDEX(Tabelle2!$B:$B,MATCH($D8,Tabelle2!$A:$A,0))))","v":""},null,null,null,{"$f":"IF(OR($D8=0,J8=0),\"\",PRODUCT(INDEX(Tabelle2!$F:$F,MATCH(J8,Tabelle2!$E:$E,0)),INDEX(Tabelle2!$B:$B,MATCH($D8,Tabelle2!$A:$A,0))))","v":""},null,null,null,{"$f":"IF(OR($D8=0,N8=0),\"\",PRODUCT(INDEX(Tabelle2!$F:$F,MATCH(N8,Tabelle2!$E:$E,0)),INDEX(Tabelle2!$B:$B,MATCH($D8,Tabelle2!$A:$A,0))))","v":""}]
[null,6,"Sitz des Herstellers",null,null,null,{"$f":"IF(OR($D9=0,F9=0),\"\",PRODUCT(INDEX(Tabelle2!$F:$F,MATCH(F9,Tabelle2!$E:$E,0)),INDEX(Tabelle2!$B:$B,MATCH($D9,Tabelle2!$A:$A,0))))","v":""},null,null,null,{"$f":"IF(OR($D9=0,J9=0),\"\",PRODUCT(INDEX(Tabelle2!$F:$F,MATCH(J9,Tabelle2!$E:$E,0)),INDEX(Tabelle2!$B:$B,MATCH($D9,Tabelle2!$A:$A,0))))","v":""},null,null,null,{"$f":"IF(OR($D9=0,N9=0),\"\",PRODUCT(INDEX(Tabelle2!$F:$F,MATCH(N9,Tabelle2!$E:$E,0)),INDEX(Tabelle2!$B:$B,MATCH($D9,Tabelle2!$A:$A,0))))","v":""}]
[null,7,"Transparenz der Informationen",null,null,null,{"$f":"IF(OR($D10=0,F10=0),\"\",PRODUCT(INDEX(Tabelle2!$F:$F,MATCH(F10,Tabelle2!$E:$E,0)),INDEX(Tabelle2!$B:$B,MATCH($D10,Tabelle2!$A:$A,0))))","v":""},null,null,null,{"$f":"IF(OR($D10=0,J10=0),\"\",PRODUCT(INDEX(Tabelle2!$F:$F,MATCH(J10,Tabelle2!$E:$E,0)),INDEX(Tabelle2!$B:$B,MATCH($D10,Tabelle2!$A:$A,0))))","v":""},null,null,null,{"$f":"IF(OR($D10=0,N10=0),\"\",PRODUCT(INDEX(Tabelle2!$F:$F,MATCH(N10,Tabelle2!$E:$E,0)),INDEX(Tabelle2!$B:$B,MATCH($D10,Tabelle2!$A:$A,0))))","v":""}]
[]
[null,null,null,"TEILERGEBNIS",null,null,{"$f":"SUM(G4:G10)","v":0},null,null,null,{"$f":"SUM(K4:K10)","v":0},null,null,null,{"$f":"SUM(O4:O10)","v":0}]
[]
[]
[]
["Gerätemerkmale Hardware",null,null,null,null,{"$f":"F2","v":"Modell 1"},null,null,null,{"$f":"J2","v":"Modell 2"},null,null,null,{"$f":"N2","v":"Modell 3"}]
[null,"Thema-Nr.","Kriterium","persönliche Gewichtung",null,"Note","berechnete Punktzahl","Info",null,"Note","berechnete Punktzahl","Info",null,"Note","berechnete Punktzahl","Info"]
[null,1,"Batterielaufzeit",null,null,null,{"$f":"IF(OR($D18=0,F18=0),\"\",PRODUCT(INDEX(Tabelle2!$F:$F,MATCH(F18,Tabelle2!$E:$E,0)),INDEX(Tabelle2!$B:$B,MATCH($D18,Tabelle2!$A:$A,0))))","v":""},null,null,null,{"$f":"IF(OR($D18=0,J18=0),\"\",PRODUCT(INDEX(Tabelle2!$F:$F,MATCH(J18,Tabelle2!$E:$E,0)),INDEX(Tabelle2!$B:$B,MATCH($D18,Tabelle2!$A:$A,0))))","v":""},null,null,null,{"$f":"IF(OR($D18=0,N18=0),\"\",PRODUCT(INDEX(Tabelle2!$F:$F,MATCH(N18,Tabelle2!$E:$E,0)),INDEX(Tabelle2!$B:$B,MATCH($D18,Tabelle2!$A:$A,0))))","v":""}]
[null,2,"Beschaffenheit",null,null,null,{"$f":"IF(OR($D19=0,F19=0),\"\",PRODUCT(INDEX(Tabelle2!$F:$F,MATCH(F19,Tabelle2!$E:$E,0)),INDEX(Tabelle2!$B:$B,MATCH($D19,Tabelle2!$A:$A,0))))","v":""},null,null,null,{"$f":"IF(OR($D19=0,J19=0),\"\",PRODUCT(INDEX(Tabelle2!$F:$F,MATCH(J19,Tabelle2!$E:$E,0)),INDEX(Tabelle2!$B:$B,MATCH($D19,Tabelle2!$A:$A,0))))","v":""},null,null,null,{"$f":"IF(OR($D19=0,N19=0),\"\",PRODUCT(INDEX(Tabelle2!$F:$F,MATCH(N19,Tabelle2!$E:$E,0)),INDEX(Tabelle2!$B:$B,MATCH($D19,Tabelle2!$A:$A,0))))","v":""}]
[null,3,"Eigenschaften",null,null,null,{"$f":"IF(OR($D20=0,F20=0),\"\",PRODUCT(INDEX(Tabelle2!$F:$F,MATCH(F20,Tabelle2!$E:$E,0)),INDEX(Tabelle2!$B:$B,MATCH($D20,Tabelle2!$A:$A,0))))","v":""},null,null,null,{"$f":"IF(OR($D20=0,J20=0),\"\",PRODUCT(INDEX(Tabelle2!$F:$F,MATCH(J20,Tabelle2!$E:$E,0)),INDEX(Tabelle2!$B:$B,MATCH($D20,Tabelle2!$A:$A,0))))","v":""},null,null,null,{"$f":"IF(OR($D20=0,N20=0),\"\",PRODUCT(INDEX(Tabelle2!$F:$F,MATCH(N20,Tabelle2!$E:$E,0)),INDEX(Tabelle2!$B:$B,MATCH($D20,Tabelle2!$A:$A,0))))","v":""}]
[null,4,"Form/Handlichkeit",null,null,null,{"$f":"IF(OR($D21=0,F21=0),\"\",PRODUCT(INDEX(Tabelle2!$F:$F,MATCH(F21,Tabelle2!$E:$E,0)),INDEX(Tabelle2!$B:$B,MATCH($D21,Tabelle2!$A:$A,0))))","v":""},null,null,null,{"$f":"IF(OR($D21=0,J21=0),\"\",PRODUCT(INDEX(Tabelle2!$F:$F,MATCH(J21,Tabelle2!$E:$E,0)),INDEX(Tabelle2!$B:$B,MATCH($D21,Tabelle2!$A:$A,0))))","v":""},null,null,null,{"$f":"IF(OR($D21=0,N21=0),\"\",PRODUCT(INDEX(Tabelle2!$F:$F,MATCH(N21,Tabelle2!$E:$E,0)),INDEX(Tabelle2!$B:$B,MATCH($D21,Tabelle2!$A:$A,0))))","v":""}]
[null,5,"Gewicht",null,null,null,{"$f":"IF(OR($D22=0,F22=0),\"\",PRODUCT(INDEX(Tabelle2!$F:$F,MATCH(F22,Tabelle2!$E:$E,0)),INDEX(Tabelle2!$B:$B,MATCH($D22,Tabelle2!$A:$A,0))))","v":""},null,null,null,{"$f":"IF(OR($D22=0,J22=0),\"\",PRODUCT(INDEX(Tabelle2!$F:$F,MATCH(J22,Tabelle2!$E:$E,0)),INDEX(Tabelle2!$B:$B,MATCH($D22,Tabelle2!$A:$A,0))))","v":""},null,null,null,{"$f":"IF(OR($D22=0,N22=0),\"\",PRODUCT(INDEX(Tabelle2!$F:$F,MATCH(N22,Tabelle2!$E:$E,0)),INDEX(Tabelle2!$B:$B,MATCH($D22,Tabelle2!$A:$A,0))))","v":""}]
[null,6,"Größe",null,null,null,{"$f":"IF(OR($D23=0,F23=0),\"\",PRODUCT(INDEX(Tabelle2!$F:$F,MATCH(F23,Tabelle2!$E:$E,0)),INDEX(Tabelle2!$B:$B,MATCH($D23,Tabelle2!$A:$A,0))))","v":""},null,null,null,{"$f":"IF(OR($D23=0,J23=0),\"\",PRODUCT(INDEX(Tabelle2!$F:$F,MATCH(J23,Tabelle2!$E:$E,0)),INDEX(Tabelle2!$B:$B,MATCH($D23,Tabelle2!$A:$A,0))))","v":""},null,null,null,{"$f":"IF(OR($D23=0,N23=0),\"\",PRODUCT(INDEX(Tabelle2!$F:$F,MATCH(N23,Tabelle2!$E:$E,0)),INDEX(Tabelle2!$B:$B,MATCH($D23,Tabelle2!$A:$A,0))))","v":""}]
[null,7,"Preis",null,null,null,{"$f":"IF(OR($D24=0,F24=0),\"\",PRODUCT(INDEX(Tabelle2!$F:$F,MATCH(F24,Tabelle2!$E:$E,0)),INDEX(Tabelle2!$B:$B,MATCH($D24,Tabelle2!$A:$A,0))))","v":""},null,null,null,{"$f":"IF(OR($D24=0,J24=0),\"\",PRODUCT(INDEX(Tabelle2!$F:$F,MATCH(J24,Tabelle2!$E:$E,0)),INDEX(Tabelle2!$B:$B,MATCH($D24,Tabelle2!$A:$A,0))))","v":""},null,null,null,{"$f":"IF(OR($D24=0,N24=0),\"\",PRODUCT(INDEX(Tabelle2!$F:$F,MATCH(N24,Tabelle2!$E:$E,0)),INDEX(Tabelle2!$B:$B,MATCH($D24,Tabelle2!$A:$A,0))))","v":""}]
[]
[null,null,null,"TEILERGEBNIS",null,null,{"$f":"SUM(G18:G24)","v":0},null,null,null,{"$f":"SUM(K18:K24)","v":0},null,null,null,{"$f":"SUM(O18:O24)","v":0}]
[]
[]
[]
["Gerätemerkmale Software",null,null,null,null,{"$f":"F2","v":"Modell 1"},null,null,null,{"$f":"J2","v":"Modell 2"},null,null,null,{"$f":"N2","v":"Modell 3"}]
[null,"Thema-Nr.","Kriterium","persönliche Gewichtung",null,"Note","berechnete Punktzahl","Info",null,"Note","berechnete Punktzahl","Info",null,"Note","berechnete Punktzahl","Info"]
[null,1,"Erhalt der Alarme",null,null,null,{"$f":"IF(OR($D32=0,F32=0),\"\",PRODUCT(INDEX(Tabelle2!$F:$F,MATCH(F32,Tabelle2!$E:$E,0)),INDEX(Tabelle2!$B:$B,MATCH($D32,Tabelle2!$A:$A,0))))","v":""},null,null,null,{"$f":"IF(OR($D32=0,J32=0),\"\",PRODUCT(INDEX(Tabelle2!$F:$F,MATCH(J32,Tabelle2!$E:$E,0)),INDEX(Tabelle2!$B:$B,MATCH($D32,Tabelle2!$A:$A,0))))","v":""},null,null,null,{"$f":"IF(OR($D32=0,N32=0),\"\",PRODUCT(INDEX(Tabelle2!$F:$F,MATCH(N32,Tabelle2!$E:$E,0)),INDEX(Tabelle2!$B:$B,MATCH($D32,Tabelle2!$A:$A,0))))","v":""}]
[null,2,"Mehrsprachigkeit",null,null,null,{"$f":"IF(OR($D33=0,F33=0),\"\",PRODUCT(INDEX(Tabelle2!$F:$F,MATCH(F33,Tabelle2!$E:$E,0)),INDEX(Tabelle2!$B:$B,MATCH($D33,Tabelle2!$A:$A,0))))","v":""},null,null,null,{"$f":"IF(OR($D33=0,J33=0),\"\",PRODUCT(INDEX(Tabelle2!$F:$F,MATCH(J33,Tabelle2!$E:$E,0)),INDEX(Tabelle2!$B:$B,MATCH($D33,Tabelle2!$A:$A,0))))","v":""},null,null,null,{"$f":"IF(OR($D33=0,N33=0),\"\",PRODUCT(INDEX(Tabelle2!$F:$F,MATCH(N33,Tabelle2!$E:$E,0)),INDEX(Tabelle2!$B:$B,MATCH($D33,Tabelle2!$A:$A,0))))","v":""}]
[null,3,"Möglichkeit der Live-Ortung",null,null,null,{"$f":"IF(OR($D34=0,F34=0),\"\",PRODUCT(INDEX(Tabelle2!$F:$F,MATCH(F34,Tabelle2!$E:$E,0)),INDEX(Tabelle2!$B:$B,MATCH($D34,Tabelle2!$A:$A,0))))","v":""},null,null,null,{"$f":"IF(OR($D34=0,J34=0),\"\",PRODUCT(INDEX(Tabelle2!$F:$F,MATCH(J34,Tabelle2!$E:$E,0)),INDEX(Tabelle2!$B:$B,MATCH($D34,Tabelle2!$A:$A,0))))","v":""},null,null,null,{"$f":"IF(OR($D34=0,N34=0),\"\",PRODUCT(INDEX(Tabelle2!$F:$F,MATCH(N34,Tabelle2!$E:$E,0)),INDEX(Tabelle2!$B:$B,MATCH($D34,Tabelle2!$A:$A,0))))","v":""}]
[null,4,"Nutzung per App",null,null,null,{"$f":"IF(OR($D35=0,F35=0),\"\",PRODUCT(INDEX(Tabelle2!$F:$F,MATCH(F35,Tabelle2!$E:$E,0)),INDEX(Tabelle2!$B:$B,MATCH($D35,Tabelle2!$A:$A,0))))","v":""},null,null,null,{"$f":"IF(OR($D35=0,J35=0),\"\",PRODUCT(INDEX(Tabelle2!$F:$F,MATCH(J35,Tabelle2!$E:$E,0)),INDEX(Tabelle2!$B:$B,MATCH($D35,Tabelle2!$A:$A,0))))","v":""},null,null,null,{"$f":"IF(OR($D35=0,N35=0),\"\",PRODUCT(INDEX(Tabelle2!$F:$F,MATCH(N35,Tabelle2!$E:$E,0)),INDEX(Tabelle2!$B:$B,MATCH($D35,Tabelle2!$A:$A,0))))","v":""}]
[null,5,"Individuelle Einstellungen möglich",null,null,null,{"$f":"IF(OR($D36=0,F36=0),\"\",PRODUCT(INDEX(Tabelle2!$F:$F,MATCH(F36,Tabelle2!$E:$E,0)),INDEX(Tabelle2!$B:$B,MATCH($D36,Tabelle2!$A:$A,0))))","v":""},null,null,null,{"$f":"IF(OR($D36=0,J36=0),\"\",PRODUCT(INDEX(Tabelle2!$F:$F,MATCH(J36,Tabelle2!$E:$E,0)),INDEX(Tabelle2!$B:$B,MATCH($D36,Tabelle2!$A:$A,0))))","v":""},null,null,null,{"$f":"IF(OR($D36=0,N36=0),\"\",PRODUCT(INDEX(Tabelle2!$F:$F,MATCH(N36,Tabelle2!$E:$E,0)),INDEX(Tabelle2!$B:$B,MATCH($D36,Tabelle2!$A:$A,0))))","v":""}]
[null,6,"Streckenspeicherdauer",null,null,null,{"$f":"IF(OR($D37=0,F37=0),\"\",PRODUCT(INDEX(Tabelle2!$F:$F,MATCH(F37,Tabelle2!$E:$E,0)),INDEX(Tabelle2!$B:$B,MATCH($D37,Tabelle2!$A:$A,0))))","v":""},null,null,null,{"$f":"IF(OR($D37=0,J37=0),\"\",PRODUCT(INDEX(Tabelle2!$F:$F,MATCH(J37,Tabelle2!$E:$E,0)),INDEX(Tabelle2!$B:$B,MATCH($D37,Tabelle2!$A:$A,0))))","v":""},null,null,null,{"$f":"IF(OR($D37=0,N37=0),\"\",PRODUCT(INDEX(Tabelle2!$F:$F,MATCH(N37,Tabelle2!$E:$E,0)),INDEX(Tabelle2!$B:$B,MATCH($D37,Tabelle2!$A:$A,0))))","v":""}]
[null,7,"Verfügbarkeit in Ländern und Regionen/Netzabdeckung",null,null,null,{"$f":"IF(OR($D38=0,F38=0),\"\",PRODUCT(INDEX(Tabelle2!$F:$F,MATCH(F38,Tabelle2!$E:$E,0)),INDEX(Tabelle2!$B:$B,MATCH($D38,Tabelle2!$A:$A,0))))","v":""},null,null,null,{"$f":"IF(OR($D38=0,J38=0),\"\",PRODUCT(INDEX(Tabelle2!$F:$F,MATCH(J38,Tabelle2!$E:$E,0)),INDEX(Tabelle2!$B:$B,MATCH($D38,Tabelle2!$A:$A,0))))","v":""},null,null,null,{"$f":"IF(OR($D38=0,N38=0),\"\",PRODUCT(INDEX(Tabelle2!$F:$F,MATCH(N38,Tabelle2!$E:$E,0)),INDEX(Tabelle2!$B:$B,MATCH($D38,Tabelle2!$A:$A,0))))","v":""}]
[]
[null,null,null,"TEILERGEBNIS",null,null,{"$f":"SUM(G32:G38)","v":0},null,null,null,{"$f":"SUM(K32:K38)","v":0},null,null,null,{"$f":"SUM(O32:O38)","v":0}]
[]
[]
[]
[]
[]
[null,null,{"$f":"F2","v":"Modell 1"},{"$f":"SUM(G12,G26,G40)","v":0},null,{"$f":"RANK(D46,$D$46:$D$48)","v":1}]
[null,null,{"$f":"J2","v":"Modell 2"},{"$f":"SUM(K12,K26,K40)","v":0},null,{"$f":"RANK(D47,$D$46:$D$48)","v":1}]
[null,null,{"$f":"N2","v":"Modell 3"},{"$f":"SUM(O12,O26,O40)","v":0},null,{"$f":"RANK(D48,$D$46:$D$48)","v":1}]

{"sheet":"Auswertung und Diagramm","index":2,"n_rows":5,"n_cols":3,"rows_kept":5,"cut":false,"hidden":false,"merged":[[0,0,0,3]]}
["Ihr digitaler GPS-Tracker-Vergleich;\nDie Ergebnisse"]
["Platzierung","Artikel","Gesamtpunktzahl"]
[1,{"$f":"INDEX(Vergleich!$C$46:$C$48,MATCH('Auswertung und Diagramm'!A3,Vergleich!$F$46:$F$48,0))","v":"Modell 1"},{"$f":"INDEX(Vergleich!$D$46:$D$48,MATCH('Auswertung und Diagramm'!A3,Vergleich!$F$46:$F$48,0))","v":0}]
[2,{"$f":"IF(ISNA(INDEX(Vergleich!$C$46:$C$48,MATCH('Auswertung und Diagramm'!A4,Vergleich!$F$46:$F$48,0))),\"\",INDEX(Vergleich!$C$46:$C$48,MATCH('Auswertung und Diagramm'!A4,Vergleich!$F$46:$F$48,0)))","v":""},{"$f":"IF(ISNA(INDEX(Vergleich!$D$46:$D$48,MATCH('Auswertung und Diagramm'!A4,Vergleich!$F$46:$F$48,0))),\"\",INDEX(Vergleich!$D$46:$D$48,MATCH('Auswertung und Diagramm'!A4,Vergleich!$F$46:$F$48,0)))","v":""}]
[3,{"$f":"IF(ISNA(INDEX(Vergleich!$C$46:$C$48,MATCH('Auswertung und Diagramm'!A5,Vergleich!$F$46:$F$48,0))),\"\",INDEX(Vergleich!$C$46:$C$48,MATCH('Auswertung und Diagramm'!A5,Vergleich!$F$46:$F$48,0)))","v":""},{"$f":"IF(ISNA(INDEX(Vergleich!$D$46:$D$48,MATCH('Auswertung und Diagramm'!A5,Vergleich!$F$46:$F$48,0))),\"\",INDEX(Vergleich!$D$46:$D$48,MATCH('Auswertung und Diagramm'!A5,Vergleich!$F$46:$F$48,0)))","v":""}]

{"sheet":"Tabelle2","index":3,"n_rows":8,"n_cols":6,"rows_kept":8,"cut":false,"hidden":true,"merged":[]}
[]
[]
["sehr wichtig",1.5,null,null,"1 - sehr gut",6]
["neutral",1,null,null,"2 - gut",5]
["nicht wichtig",0.5,null,null,"3 - befriedigend",4]
["nicht mit in Wertung aufnehmen",0,null,null,"4 - ausreichend",3]
[null,null,null,null,"5 - mangelhaft",2]
[null,null,null,null,"6 - ungenügend",1]